[Event "*** SCC Grand Prix: Titled Tuesday Blitz"]
[Site "Chess.com"]
[Date "2020.06.23"]
[Round "2"]
[White "Anuar_Is"]
[Black "verdest"]
[Result "1-0"]
[WhiteElo "2837"]
[BlackElo "2545"]
[TimeControl "180+1"]
[EndTime "10:18:12 PDT"]
[Termination "Anuar_Is won on time"]

1. e4 {[%clk 0:03:00.9]} 1... c5 {[%clk 0:02:59.4]} 2. Nf3 {[%clk 0:03:00.7]}
2... Nc6 {[%clk 0:02:58.7]} 3. d4 {[%clk 0:03:01.1]} 3... cxd4 {[%clk
0:02:57.1]} 4. Nxd4 {[%clk 0:03:02]} 4... Nf6 {[%clk 0:02:57.1]} 5. Nc3 {[%clk
0:03:02.4]} 5... e5 {[%clk 0:02:54.5]} 6. Ndb5 {[%clk 0:03:02.5]} 6... d6 {[%clk
0:02:53.1]} 7. Bg5 {[%clk 0:03:02.6]} 7... a6 {[%clk 0:02:53.2]} 8. Na3 {[%clk
0:03:03.2]} 8... b5 {[%clk 0:02:53.2]} 9. Nd5 {[%clk 0:03:03.8]} 9... Be7 {[%clk
0:02:53.3]} 10. Bxf6 {[%clk 0:03:04.4]} 10... Bxf6 {[%clk 0:02:53.8]} 11. c4
{[%clk 0:03:05.1]} 11... b4 {[%clk 0:02:53.2]} 12. Nc2 {[%clk 0:03:05.4]} 12...
a5 {[%clk 0:02:52.8]} 13. g3 {[%clk 0:03:05]} 13... Bg5 {[%clk 0:02:45.9]} 14.
Bg2 {[%clk 0:03:05]} 14... Be6 {[%clk 0:02:45.3]} 15. O-O {[%clk 0:03:04.5]}
15... O-O {[%clk 0:02:42.8]} 16. Qd3 {[%clk 0:03:02.4]} 16... Ne7 {[%clk
0:02:41.2]} 17. Nce3 {[%clk 0:03:02.1]} 17... Bxe3 {[%clk 0:02:41.1]} 18. Nxe3
{[%clk 0:03:03]} 18... Qc7 {[%clk 0:02:38.3]} 19. Kh1 {[%clk 0:03:01.6]} 19...
a4 {[%clk 0:02:27.1]} 20. Rad1 {[%clk 0:02:58.2]} 20... Rfd8 {[%clk 0:02:21.9]}
21. b3 {[%clk 0:02:57.5]} 21... Qc5 {[%clk 0:02:11.5]} 22. Nf5 {[%clk
0:02:55.3]} 22... Nc6 {[%clk 0:01:53.3]} 23. Qd2 {[%clk 0:02:42.8]} 23... f6
{[%clk 0:01:24.9]} 24. Qe2 {[%clk 0:02:39.2]} 24... g6 {[%clk 0:01:00.2]} 25.
Ne3 {[%clk 0:02:36.5]} 25... Nd4 {[%clk 0:00:56.5]} 26. Qb2 {[%clk 0:02:36.2]}
26... axb3 {[%clk 0:00:54.8]} 27. axb3 {[%clk 0:02:37.1]} 27... Ra3 {[%clk
0:00:54.7]} 28. Rd3 {[%clk 0:02:31.7]} 28... Rda8 {[%clk 0:00:53.8]} 29. Qb1
{[%clk 0:02:18.6]} 29... Ra2 {[%clk 0:00:48.9]} 30. Qd1 {[%clk 0:02:16.4]} 30...
Rb2 {[%clk 0:00:45.6]} 31. h4 {[%clk 0:02:08.9]} 31... Raa2 {[%clk 0:00:43.9]}
32. Kg1 {[%clk 0:02:06.1]} 32... Ne2+ {[%clk 0:00:35.3]} 33. Kh2 {[%clk
0:02:03.7]} 33... Nc3 {[%clk 0:00:35.2]} 34. Qe1 {[%clk 0:02:01.9]} 34... Re2
{[%clk 0:00:34.2]} 35. Qc1 {[%clk 0:01:59.1]} 35... Rxf2 {[%clk 0:00:33.3]} 36.
Rxf2 {[%clk 0:01:54.1]} 36... Rxf2 {[%clk 0:00:34.2]} 37. h5 {[%clk 0:01:48.1]}
37... Kg7 {[%clk 0:00:30.3]} 38. h6+ {[%clk 0:01:45.1]} 38... Kf7 {[%clk
0:00:26.7]} 39. Qe1 {[%clk 0:01:40.5]} 39... Ra2 {[%clk 0:00:24.4]} 40. Rd2
{[%clk 0:01:37.1]} 40... Rxd2 {[%clk 0:00:22.5]} 41. Qxd2 {[%clk 0:01:38]} 41...
Qd4 {[%clk 0:00:22.9]} 42. Qe1 {[%clk 0:01:32]} 42... Nxe4 {[%clk 0:00:21.7]}
43. Nc2 {[%clk 0:01:30.1]} 43... Qf2 {[%clk 0:00:04.4]} 44. Qxe4 {[%clk
0:01:30]} 44... f5 {[%clk 0:00:05.3]} 45. Qb7+ {[%clk 0:01:27.6]} 45... Kf6
{[%clk 0:00:05.1]} 46. Nxb4 {[%clk 0:01:27.8]} 46... f4 {[%clk 0:00:04.6]} 47.
Qf3 {[%clk 0:01:28.3]} 47... Qxf3 {[%clk 0:00:03.3]} 48. Bxf3 {[%clk 0:01:28.3]}
48... Bf5 {[%clk 0:00:03]} 49. gxf4 {[%clk 0:01:27.5]} 49... exf4 {[%clk
0:00:02.8]} 50. Nd5+ {[%clk 0:01:27.1]} 50... Ke5 {[%clk 0:00:03.2]} 51. b4
{[%clk 0:01:24.9]} 51... g5 {[%clk 0:00:03.3]} 52. b5 {[%clk 0:01:24.1]} 52...
g4 {[%clk 0:00:03.1]} 53. b6 {[%clk 0:01:24.5]} 1-0

[Event "*** SCC Grand Prix: Titled Tuesday Blitz"]
[Site "Chess.com"]
[Date "2020.06.23"]
[Round "2"]
[White "Tooweak2slow03"]
[Black "Lucas_Tomiello"]
[Result "1-0"]
[WhiteElo "2652"]
[BlackElo "2317"]
[TimeControl "180+1"]
[EndTime "10:18:12 PDT"]
[Termination "Tooweak2slow03 won by resignation"]

1. e4 {[%clk 0:03:00.9]} 1... c5 {[%clk 0:03:00.2]} 2. Nf3 {[%clk 0:03:01.5]}
2... d6 {[%clk 0:03:00.4]} 3. d4 {[%clk 0:03:01.8]} 3... cxd4 {[%clk 0:03:01.3]}
4. Nxd4 {[%clk 0:03:02.1]} 4... Nf6 {[%clk 0:03:01.9]} 5. Nc3 {[%clk 0:03:02.3]}
5... a6 {[%clk 0:03:02.5]} 6. a3 {[%clk 0:03:02.7]} 6... e6 {[%clk 0:02:59.2]}
7. g4 {[%clk 0:03:02.2]} 7... Nc6 {[%clk 0:02:57.9]} 8. g5 {[%clk 0:03:01.3]}
8... Nd7 {[%clk 0:02:56.8]} 9. h4 {[%clk 0:03:01.6]} 9... Be7 {[%clk 0:02:55]}
10. Be3 {[%clk 0:03:01.1]} 10... Qc7 {[%clk 0:02:54.9]} 11. f4 {[%clk
0:02:59.5]} 11... b5 {[%clk 0:02:46.1]} 12. Qd2 {[%clk 0:02:57.4]} 12... Bb7
{[%clk 0:02:43.2]} 13. Bg2 {[%clk 0:02:57.1]} 13... Nb6 {[%clk 0:02:40]} 14. b3
{[%clk 0:02:38.4]} 14... Rc8 {[%clk 0:02:35.6]} 15. Nce2 {[%clk 0:02:02.4]}
15... d5 {[%clk 0:01:33.6]} 16. e5 {[%clk 0:01:56.5]} 16... g6 {[%clk
0:01:12.8]} 17. O-O {[%clk 0:01:52.3]} 17... h5 {[%clk 0:01:10.4]} 18. Rac1
{[%clk 0:01:48]} 18... O-O {[%clk 0:01:09.7]} 19. Qd3 {[%clk 0:01:38.5]} 19...
Bxa3 {[%clk 0:01:08.8]} 20. Nxe6 {[%clk 0:01:38.4]} 20... fxe6 {[%clk
0:01:03.2]} 21. Qxg6+ {[%clk 0:01:38.4]} 21... Qg7 {[%clk 0:01:02.4]} 22. Qxh5
{[%clk 0:01:38.3]} 22... Bxc1 {[%clk 0:01:02.1]} 23. Bxc1 {[%clk 0:01:34.2]}
23... Nb4 {[%clk 0:00:54.7]} 24. c3 {[%clk 0:01:29.9]} 24... Nd3 {[%clk
0:00:51.9]} 25. Be3 {[%clk 0:01:27.4]} 25... Nd7 {[%clk 0:00:44.1]} 26. Nd4
{[%clk 0:01:26.1]} 26... Rce8 {[%clk 0:00:35.4]} 27. Qg4 {[%clk 0:01:21.9]}
27... Qe7 {[%clk 0:00:28.3]} 28. h5 {[%clk 0:01:19.7]} 28... b4 {[%clk
0:00:21.9]} 29. g6 {[%clk 0:01:15.6]} 29... N7xe5 {[%clk 0:00:16.3]} 30. fxe5
{[%clk 0:01:13.7]} 30... Rxf1+ {[%clk 0:00:16.2]} 31. Bxf1 {[%clk 0:01:13.8]}
31... Nxe5 {[%clk 0:00:16.7]} 32. Qf4 {[%clk 0:01:10.5]} 32... Nd7 {[%clk
0:00:15.7]} 33. h6 {[%clk 0:01:05.7]} 33... e5 {[%clk 0:00:15.8]} 34. Qg4 {[%clk
0:01:01.1]} 34... exd4 {[%clk 0:00:14.7]} 35. Bxd4 {[%clk 0:01:02]} 35... Ne5
{[%clk 0:00:14.4]} 36. Qf5 {[%clk 0:01:00]} 36... Rf8 {[%clk 0:00:13.2]} 37. h7+
{[%clk 0:00:57.5]} 37... Kg7 {[%clk 0:00:12.2]} 38. Bxe5+ {[%clk 0:00:56.8]}
38... Kh6 {[%clk 0:00:07.4]} 39. Qh3+ {[%clk 0:00:56]} 39... Kg5 {[%clk
0:00:07.7]} 40. g7 {[%clk 0:00:48.7]} 40... Rxf1+ {[%clk 0:00:06]} 41. Qxf1
{[%clk 0:00:48.1]} 41... Qxe5 {[%clk 0:00:06.4]} 42. g8=Q+ {[%clk 0:00:48.3]}
1-0

[Event "*** SCC Grand Prix: Titled Tuesday Blitz"]
[Site "Chess.com"]
[Date "2020.06.23"]
[Round "2"]
[White "Th3_Hound"]
[Black "VincentKeymer"]
[Result "0-1"]
[WhiteElo "2548"]
[BlackElo "2846"]
[TimeControl "180+1"]
[EndTime "10:18:13 PDT"]
[Termination "VincentKeymer won by resignation"]

1. e4 {[%clk 0:02:49.1]} 1... e6 {[%clk 0:02:59.4]} 2. d4 {[%clk 0:02:48.9]}
2... d5 {[%clk 0:02:59.8]} 3. Nd2 {[%clk 0:02:49.4]} 3... b6 {[%clk 0:02:59.6]}
4. Ngf3 {[%clk 0:02:49.2]} 4... Nf6 {[%clk 0:02:59.2]} 5. e5 {[%clk 0:02:49.2]}
5... Nfd7 {[%clk 0:02:59.2]} 6. Bd3 {[%clk 0:02:49.3]} 6... c5 {[%clk
0:02:59.7]} 7. c3 {[%clk 0:02:49.2]} 7... Ba6 {[%clk 0:03:00.2]} 8. Bxa6 {[%clk
0:02:48.4]} 8... Nxa6 {[%clk 0:03:01.1]} 9. O-O {[%clk 0:02:48.5]} 9... Be7
{[%clk 0:03:00.1]} 10. Re1 {[%clk 0:02:49]} 10... Nab8 {[%clk 0:02:57.6]} 11.
Nf1 {[%clk 0:02:49.4]} 11... Nc6 {[%clk 0:02:57.5]} 12. Ng3 {[%clk 0:02:49.5]}
12... h5 {[%clk 0:02:57.7]} 13. a3 {[%clk 0:02:46.4]} 13... a5 {[%clk
0:02:49.2]} 14. h3 {[%clk 0:02:41.6]} 14... b5 {[%clk 0:02:47.1]} 15. a4 {[%clk
0:02:40.3]} 15... b4 {[%clk 0:02:45.3]} 16. c4 {[%clk 0:02:39.3]} 16... Nb6
{[%clk 0:02:23.2]} 17. cxd5 {[%clk 0:02:31.5]} 17... Qxd5 {[%clk 0:02:16.7]} 18.
dxc5 {[%clk 0:02:26.9]} 18... Bxc5 {[%clk 0:02:14]} 19. Qe2 {[%clk 0:02:24.5]}
19... Qc4 {[%clk 0:01:49.5]} 20. Ne4 {[%clk 0:02:15.9]} 20... Qxe2 {[%clk
0:01:46.4]} 21. Rxe2 {[%clk 0:02:16.8]} 21... Be7 {[%clk 0:01:46.8]} 22. Rc2
{[%clk 0:02:12]} 22... Rc8 {[%clk 0:01:35.4]} 23. Be3 {[%clk 0:02:10.9]} 23...
Nd5 {[%clk 0:01:31.8]} 24. Rac1 {[%clk 0:02:08.5]} 24... Kd7 {[%clk 0:01:31.5]}
25. Bc5 {[%clk 0:02:03.1]} 25... b3 {[%clk 0:01:17.8]} 26. Rc4 {[%clk
0:01:59.6]} 26... Ncb4 {[%clk 0:01:17.7]} 27. Nd4 {[%clk 0:01:40]} 27... Nd3
{[%clk 0:01:09.5]} 28. Nxb3 {[%clk 0:01:07.2]} 28... Nxc1 {[%clk 0:01:03]} 29.
Nxc1 {[%clk 0:01:06.9]} 29... Bxc5 {[%clk 0:00:57.5]} 30. Nxc5+ {[%clk
0:01:06.1]} 30... Ke7 {[%clk 0:00:57.1]} 31. N1b3 {[%clk 0:01:02.4]} 31... Nb6
{[%clk 0:00:45.4]} 32. Rd4 {[%clk 0:00:54.8]} 32... Rc7 {[%clk 0:00:40.3]} 33.
Ne4 {[%clk 0:00:49.7]} 33... Nc4 {[%clk 0:00:37.1]} 34. Nd6 {[%clk 0:00:38.4]}
34... Nxe5 {[%clk 0:00:33.7]} 35. Nb5 {[%clk 0:00:39]} 35... Rd7 {[%clk
0:00:31.5]} 36. Rxd7+ {[%clk 0:00:37.7]} 36... Kxd7 {[%clk 0:00:29.7]} 37. Nxa5
{[%clk 0:00:38.6]} 37... Ra8 {[%clk 0:00:27.7]} 38. b4 {[%clk 0:00:36.3]} 38...
Nc6 {[%clk 0:00:27.6]} 39. Nc4 {[%clk 0:00:36]} 39... Rb8 {[%clk 0:00:24]} 40.
a5 {[%clk 0:00:31.3]} 40... Rxb5 {[%clk 0:00:22.9]} 0-1

[Event "*** SCC Grand Prix: Titled Tuesday Blitz"]
[Site "Chess.com"]
[Date "2020.06.23"]
[Round "2"]
[White "Alexander_Donchenko"]
[Black "Pintacara"]
[Result "1-0"]
[WhiteElo "2676"]
[BlackElo "2336"]
[TimeControl "180+1"]
[EndTime "10:18:13 PDT"]
[Termination "Alexander_Donchenko won on time"]

1. e4 {[%clk 0:03:00.9]} 1... c5 {[%clk 0:02:59.4]} 2. Nf3 {[%clk 0:02:58.8]}
2... e6 {[%clk 0:02:59.4]} 3. d4 {[%clk 0:02:58.4]} 3... cxd4 {[%clk 0:02:59.4]}
4. Nxd4 {[%clk 0:02:59.3]} 4... a6 {[%clk 0:02:59.5]} 5. c3 {[%clk 0:02:59]}
5... b5 {[%clk 0:02:54.4]} 6. Bd3 {[%clk 0:02:58.2]} 6... Bb7 {[%clk 0:02:54.5]}
7. O-O {[%clk 0:02:58.2]} 7... d6 {[%clk 0:02:48.9]} 8. a4 {[%clk 0:02:57.1]}
8... bxa4 {[%clk 0:02:37.4]} 9. Na3 {[%clk 0:02:53.2]} 9... Nf6 {[%clk
0:02:34.3]} 10. Qe2 {[%clk 0:02:50.9]} 10... Be7 {[%clk 0:02:31.1]} 11. Nc4
{[%clk 0:02:48.5]} 11... O-O {[%clk 0:02:31]} 12. Rxa4 {[%clk 0:02:47.2]} 12...
d5 {[%clk 0:02:28.3]} 13. Na5 {[%clk 0:02:45.5]} 13... dxe4 {[%clk 0:02:18.4]}
14. Bc2 {[%clk 0:02:37.5]} 14... Bc8 {[%clk 0:02:03.9]} 15. Nac6 {[%clk
0:02:23.1]} 15... Nxc6 {[%clk 0:02:00.4]} 16. Nxc6 {[%clk 0:02:24]} 16... Qc7
{[%clk 0:01:53.1]} 17. Nxe7+ {[%clk 0:02:23.8]} 17... Qxe7 {[%clk 0:01:52.5]}
18. Rxe4 {[%clk 0:02:24.5]} 18... Bb7 {[%clk 0:01:46.1]} 19. Rh4 {[%clk
0:02:23.2]} 19... Qc5 {[%clk 0:00:56]} 20. Qd3 {[%clk 0:01:48.1]} 20... Rfd8
{[%clk 0:00:49.6]} 21. Qh3 {[%clk 0:01:44.4]} 21... g6 {[%clk 0:00:45.2]} 22.
Be3 {[%clk 0:01:37.8]} 22... Qd5 {[%clk 0:00:40.2]} 23. Bd4 {[%clk 0:01:21.1]}
23... Nh5 {[%clk 0:00:32.6]} 24. Be4 {[%clk 0:01:16.4]} 24... Qb5 {[%clk
0:00:18.5]} 25. Bxb7 {[%clk 0:01:10.1]} 25... Qxb7 {[%clk 0:00:19.4]} 26. Rxh5
{[%clk 0:01:02.5]} 26... gxh5 {[%clk 0:00:20.3]} 27. Qg3+ {[%clk 0:01:01.7]}
27... Kf8 {[%clk 0:00:19.5]} 28. Bf6 {[%clk 0:00:40.8]} 28... Rd5 {[%clk
0:00:14.7]} 29. Re1 {[%clk 0:00:33.5]} 29... Ke8 {[%clk 0:00:13.9]} 30. Qg8+
{[%clk 0:00:33]} 30... Kd7 {[%clk 0:00:14.1]} 31. Qxf7+ {[%clk 0:00:33.4]} 31...
Kc6 {[%clk 0:00:13.9]} 32. Rxe6+ {[%clk 0:00:31.5]} 32... Kc5 {[%clk 0:00:12.1]}
33. Bd4+ {[%clk 0:00:31.5]} 1-0

[Event "*** SCC Grand Prix: Titled Tuesday Blitz"]
[Site "Chess.com"]
[Date "2020.06.23"]
[Round "2"]
[White "leoduarte"]
[Black "Lion-Al-Messi"]
[Result "1-0"]
[WhiteElo "2281"]
[BlackElo "2449"]
[TimeControl "180+1"]
[EndTime "10:18:13 PDT"]
[Termination "leoduarte won by resignation"]

1. e4 {[%clk 0:03:00.9]} 1... e6 {[%clk 0:02:32.2]} 2. d4 {[%clk 0:02:58.5]}
2... d5 {[%clk 0:02:32.5]} 3. Nc3 {[%clk 0:02:58.4]} 3... Nf6 {[%clk 0:02:30]}
4. Bg5 {[%clk 0:02:45]} 4... dxe4 {[%clk 0:02:29.9]} 5. Nxe4 {[%clk 0:02:44.3]}
5... Be7 {[%clk 0:02:30.3]} 6. Bxf6 {[%clk 0:02:43]} 6... gxf6 {[%clk
0:02:30.7]} 7. g3 {[%clk 0:02:34.3]} 7... Bd7 {[%clk 0:02:12.3]} 8. Bg2 {[%clk
0:02:32.6]} 8... Bc6 {[%clk 0:02:12.6]} 9. f3 {[%clk 0:02:09.6]} 9... f5 {[%clk
0:02:12.7]} 10. Nc3 {[%clk 0:02:06.4]} 10... Bf6 {[%clk 0:02:12.3]} 11. Nge2
{[%clk 0:02:06.5]} 11... Na6 {[%clk 0:02:02.5]} 12. Qd2 {[%clk 0:01:57.9]} 12...
Qe7 {[%clk 0:01:54.9]} 13. O-O-O {[%clk 0:01:46.7]} 13... O-O-O {[%clk
0:01:54.8]} 14. Kb1 {[%clk 0:01:30.4]} 14... Nb4 {[%clk 0:01:54.1]} 15. a3
{[%clk 0:01:22.8]} 15... Nd5 {[%clk 0:01:54.1]} 16. Nxd5 {[%clk 0:01:21.3]}
16... Bxd5 {[%clk 0:01:55]} 17. Qe3 {[%clk 0:00:45.3]} 17... Qd6 {[%clk
0:01:47.5]} 18. Nf4 {[%clk 0:00:43.8]} 18... Bg5 {[%clk 0:01:47.2]} 19. Bf1
{[%clk 0:00:28]} 19... Rhg8 {[%clk 0:01:42]} 20. Be2 {[%clk 0:00:26.2]} 20...
Bxf4 {[%clk 0:01:37.5]} 21. gxf4 {[%clk 0:00:25]} 21... Qc6 {[%clk 0:01:37.4]}
22. c4 {[%clk 0:00:13.2]} 22... Bxc4 {[%clk 0:01:28.1]} 23. Rc1 {[%clk
0:00:13.7]} 23... b5 {[%clk 0:01:23.9]} 24. b3 {[%clk 0:00:14.1]} 24... Qd5
{[%clk 0:01:17.3]} 25. bxc4 {[%clk 0:00:14.1]} 25... Qxd4 {[%clk 0:01:16.8]} 26.
Qxd4 {[%clk 0:00:09.8]} 26... Rxd4 {[%clk 0:01:17.7]} 27. cxb5 {[%clk
0:00:09.2]} 27... Rxf4 {[%clk 0:01:17.8]} 28. Rhd1 {[%clk 0:00:07.7]} 28... Rg2
{[%clk 0:01:15.7]} 29. Rc2 {[%clk 0:00:05.2]} 29... f6 {[%clk 0:00:46.6]} 30. b6
{[%clk 0:00:05.1]} 30... Rg7 {[%clk 0:00:35.5]} 31. Ba6+ {[%clk 0:00:03.6]} 1-0

[Event "*** SCC Grand Prix: Titled Tuesday Blitz"]
[Site "Chess.com"]
[Date "2020.06.23"]
[Round "2"]
[White "grandcoach"]
[Black "JoachimMouhamad"]
[Result "0-1"]
[WhiteElo "2086"]
[BlackElo "2464"]
[TimeControl "180+1"]
[EndTime "10:18:14 PDT"]
[Termination "JoachimMouhamad won by resignation"]

1. e4 {[%clk 0:02:59.3]} 1... e5 {[%clk 0:02:59.6]} 2. Nf3 {[%clk 0:02:58.5]}
2... Nc6 {[%clk 0:02:59.5]} 3. d4 {[%clk 0:02:58.9]} 3... exd4 {[%clk
0:02:59.1]} 4. c3 {[%clk 0:02:59.4]} 4... d5 {[%clk 0:02:35.5]} 5. cxd4 {[%clk
0:03:00.3]} 5... dxe4 {[%clk 0:02:33.2]} 6. d5 {[%clk 0:02:52.6]} 6... exf3
{[%clk 0:02:30.1]} 7. dxc6 {[%clk 0:02:48.2]} 7... Qxd1+ {[%clk 0:02:25.5]} 8.
Kxd1 {[%clk 0:02:48.2]} 8... bxc6 {[%clk 0:02:23.3]} 9. Nd2 {[%clk 0:02:20.7]}
9... fxg2 {[%clk 0:02:04.9]} 10. Bxg2 {[%clk 0:02:21.6]} 10... Bd7 {[%clk
0:02:00.9]} 11. Re1+ {[%clk 0:02:18.8]} 11... Be7 {[%clk 0:01:45.2]} 12. Nc4
{[%clk 0:01:54.4]} 12... Rd8 {[%clk 0:01:38.8]} 13. Bd2 {[%clk 0:01:44.1]} 13...
Nf6 {[%clk 0:01:29.5]} 14. Ne5 {[%clk 0:01:42.1]} 14... Nd5 {[%clk 0:01:29]} 15.
Rc1 {[%clk 0:01:29.7]} 15... O-O {[%clk 0:01:13.7]} 16. Nxc6 {[%clk 0:01:29]}
16... Bxc6 {[%clk 0:01:12.7]} 17. Rxc6 {[%clk 0:01:29.9]} 17... Bb4 {[%clk
0:01:02.3]} 18. Bxd5 {[%clk 0:00:24.2]} 18... Rxd5 {[%clk 0:01:01.5]} 19. Re2
{[%clk 0:00:20.5]} 19... Rfd8 {[%clk 0:01:00.5]} 20. Rc2 {[%clk 0:00:17.2]}
20... f5 {[%clk 0:00:56.8]} 21. Kc1 {[%clk 0:00:14.8]} 21... Bxd2+ {[%clk
0:00:56.8]} 22. Rcxd2 {[%clk 0:00:15.6]} 22... Rxd2 {[%clk 0:00:57.6]} 23. Rxd2
{[%clk 0:00:15.8]} 23... Rxd2 {[%clk 0:00:58.5]} 24. Kxd2 {[%clk 0:00:16.4]}
24... Kf7 {[%clk 0:00:59]} 25. Kc3 {[%clk 0:00:16.5]} 25... Ke6 {[%clk
0:00:52.6]} 26. Kc4 {[%clk 0:00:17]} 26... g5 {[%clk 0:00:45.1]} 27. Kc5 {[%clk
0:00:16.4]} 27... h5 {[%clk 0:00:44]} 28. Kc6 {[%clk 0:00:16.3]} 28... f4 {[%clk
0:00:43.3]} 29. Kxc7 {[%clk 0:00:14.5]} 29... g4 {[%clk 0:00:43.7]} 30. b4
{[%clk 0:00:14.5]} 30... h4 {[%clk 0:00:43.9]} 31. a4 {[%clk 0:00:14]} 31... g3
{[%clk 0:00:43.4]} 32. hxg3 {[%clk 0:00:12.8]} 32... hxg3 {[%clk 0:00:43.1]} 33.
fxg3 {[%clk 0:00:12.8]} 33... fxg3 {[%clk 0:00:44]} 34. Kb7 {[%clk 0:00:09.5]}
34... g2 {[%clk 0:00:43.6]} 35. Kxa7 {[%clk 0:00:10.1]} 35... g1=Q+ {[%clk
0:00:44]} 36. Ka6 {[%clk 0:00:09.4]} 36... Kd6 {[%clk 0:00:40.8]} 37. b5 {[%clk
0:00:09.6]} 37... Kc7 {[%clk 0:00:39.9]} 38. a5 {[%clk 0:00:08.5]} 38... Qf1
{[%clk 0:00:35.9]} 0-1

[Event "*** SCC Grand Prix: Titled Tuesday Blitz"]
[Site "Chess.com"]
[Date "2020.06.23"]
[Round "2"]
[White "PredragNikac"]
[Black "chigorin28"]
[Result "0-1"]
[WhiteElo "2189"]
[BlackElo "2421"]
[TimeControl "180+1"]
[EndTime "10:18:14 PDT"]
[Termination "chigorin28 won by resignation"]

1. d4 {[%clk 0:03:00.9]} 1... Nf6 {[%clk 0:02:57.9]} 2. Bg5 {[%clk 0:03:00.9]}
2... d5 {[%clk 0:02:56.1]} 3. Bxf6 {[%clk 0:03:00.6]} 3... exf6 {[%clk 0:02:57]}
4. e3 {[%clk 0:03:00.7]} 4... Bd6 {[%clk 0:02:57.4]} 5. Bd3 {[%clk 0:03:00.6]}
5... O-O {[%clk 0:02:58.3]} 6. Ne2 {[%clk 0:03:00.6]} 6... Nd7 {[%clk
0:02:58.6]} 7. g3 {[%clk 0:02:59.9]} 7... c5 {[%clk 0:02:48.2]} 8. c3 {[%clk
0:02:57.5]} 8... g6 {[%clk 0:02:41.7]} 9. h4 {[%clk 0:02:56.6]} 9... f5 {[%clk
0:02:35.6]} 10. h5 {[%clk 0:02:56.4]} 10... Nf6 {[%clk 0:02:35.9]} 11. hxg6
{[%clk 0:02:55.7]} 11... fxg6 {[%clk 0:02:35.7]} 12. dxc5 {[%clk 0:02:55]} 12...
Bxc5 {[%clk 0:02:34.4]} 13. Nf4 {[%clk 0:02:54.8]} 13... Qe7 {[%clk 0:02:16.5]}
14. Qf3 {[%clk 0:02:52.6]} 14... Be6 {[%clk 0:02:11.7]} 15. Nd2 {[%clk
0:02:51.3]} 15... Rad8 {[%clk 0:02:10.9]} 16. Nb3 {[%clk 0:02:50.9]} 16... Bb6
{[%clk 0:02:04.7]} 17. Nd4 {[%clk 0:02:48.5]} 17... Bxd4 {[%clk 0:02:00.2]} 18.
cxd4 {[%clk 0:02:48.1]} 18... Qb4+ {[%clk 0:02:00]} 19. Kf1 {[%clk 0:02:47.9]}
19... Bd7 {[%clk 0:01:24.3]} 20. Kg2 {[%clk 0:02:45.3]} 20... Bc6 {[%clk
0:01:17.2]} 21. Ne6 {[%clk 0:02:43.5]} 21... Qxb2 {[%clk 0:01:13.6]} 22. Nxd8
{[%clk 0:02:38.3]} 22... Rxd8 {[%clk 0:01:14.5]} 23. Bxf5 {[%clk 0:02:30.1]}
23... gxf5 {[%clk 0:00:51.1]} 24. Qxf5 {[%clk 0:02:29.4]} 24... Rf8 {[%clk
0:00:50.1]} 25. Rh6 {[%clk 0:02:24.5]} 25... Qxa1 {[%clk 0:00:33]} 26. Qg5+
{[%clk 0:02:23.9]} 26... Kh8 {[%clk 0:00:27.3]} 27. Rxf6 {[%clk 0:02:23.6]}
27... Rxf6 {[%clk 0:00:22.7]} 28. Qxf6+ {[%clk 0:02:24.5]} 28... Kg8 {[%clk
0:00:23.2]} 29. Qd8+ {[%clk 0:02:23.7]} 29... Kf7 {[%clk 0:00:22.4]} 30. Qc7+
{[%clk 0:02:21.6]} 30... Ke6 {[%clk 0:00:22.7]} 31. Qc8+ {[%clk 0:02:18.2]}
31... Ke7 {[%clk 0:00:18.7]} 32. Qc7+ {[%clk 0:02:17.8]} 32... Bd7 {[%clk
0:00:18.7]} 33. Qe5+ {[%clk 0:02:11.8]} 33... Kd8 {[%clk 0:00:18.9]} 34. Qxd5
{[%clk 0:02:09]} 34... Qb2 {[%clk 0:00:17.3]} 35. Qg8+ {[%clk 0:02:05.3]} 35...
Kc7 {[%clk 0:00:17.6]} 36. Qxh7 {[%clk 0:02:05.2]} 36... Qxa2 {[%clk 0:00:17.9]}
37. e4 {[%clk 0:02:02.8]} 37... Qc4 {[%clk 0:00:16.9]} 38. d5 {[%clk 0:02:01.8]}
38... a5 {[%clk 0:00:17]} 39. Qh4 {[%clk 0:01:41.5]} 39... a4 {[%clk 0:00:14.8]}
40. d6+ {[%clk 0:01:41]} 40... Kc6 {[%clk 0:00:13.3]} 41. f3 {[%clk 0:01:36.7]}
41... a3 {[%clk 0:00:13.4]} 42. Qd8 {[%clk 0:01:36.3]} 42... Qc2+ {[%clk
0:00:09.6]} 43. Kg1 {[%clk 0:01:36]} 43... Qc1+ {[%clk 0:00:08.9]} 44. Kf2
{[%clk 0:01:35.7]} 44... Qd2+ {[%clk 0:00:09.1]} 45. Kg1 {[%clk 0:01:35.6]}
45... Qxd6 {[%clk 0:00:09.1]} 46. f4 {[%clk 0:01:25.6]} 46... Qd4+ {[%clk
0:00:08.6]} 47. Kh2 {[%clk 0:01:24.6]} 47... Qxe4 {[%clk 0:00:08.7]} 48. Qa5
{[%clk 0:01:21.1]} 48... Qc2+ {[%clk 0:00:07.9]} 49. Kg1 {[%clk 0:01:20.8]}
49... a2 {[%clk 0:00:08.3]} 50. Qa4+ {[%clk 0:01:17.8]} 50... Qxa4 {[%clk
0:00:08.1]} 0-1